bitfinex/quotes_BTCUSD_20251124
["timestamp","ask_amount","ask_price","bid_price","bid_amount"]
[1763996591074,4.23243242,86500.0,86499.0,2.0]
[1763996591280,4.23243242,86500.0,86496.0,2.0]
[1763996591492,4.23243242,86500.0,86498.0,2.0]
[1763996591697,4.23243242,86500.0,86499.0,2.41]
[1763996591898,4.23243242,86500.0,86499.0,0.4]
[1763996593095,4.23243242,86500.0,86499.0,0.40752]
[1763996593500,4.23624859,86500.0,86499.0,0.40752]
[1763996593711,4.23624859,86500.0,86495.0,0.09270902]
[1763996593895,4.23243242,86500.0,86496.0,0.00752]
[1763996594121,4.23243242,86500.0,86499.0,0.001]
[1763996594524,4.23243242,86500.0,86495.0,0.00752]
[1763996594851,4.23624859,86500.0,86495.0,0.00852]
[1763996595027,4.23243242,86500.0,86495.0,0.00852]
[1763996595251,4.23243242,86500.0,86495.0,0.00752]
[1763996598719,4.23243242,86500.0,86496.0,0.49270902]
[1763996598929,4.23243242,86500.0,86497.0,0.02312218]
[1763996599136,4.23243242,86500.0,86498.0,2.0]
[1763996599546,4.23243242,86500.0,86497.0,2.0]
[1763996600836,4.23243242,86500.0,86499.0,2.733]
[1763996601048,4.23243242,86500.0,86499.0,2.78510249]
[1763996601720,4.23624859,86500.0,86499.0,2.78510249]
[1763996602143,4.23624859,86500.0,86499.0,3.01631903]
[1763996602348,4.1945264,86500.0,86499.0,3.01631903]
[1763996602572,4.15978693,86500.0,86499.0,3.01631903]
[1763996602783,4.12504746,86500.0,86499.0,3.01831903]
[1763996602987,3.66718661,86500.0,86499.0,3.01831903]
[1763996603190,3.63244714,86500.0,86499.0,3.02831903]
[1763996603398,3.59770767,86500.0,86499.0,3.02831903]
[1763996603605,2.98275682,86500.0,86499.0,3.02831903]
[1763996603895,2.22571983,86500.0,86499.0,3.14881903]
[1763996604115,1.85963705,86500.0,86499.0,3.14881903]
[1763996604278,1.769053,86500.0,86499.0,3.15081903]
[1763996604492,1.73431353,86500.0,86499.0,3.15081903]
[1763996604809,1.66483459,86500.0,86499.0,3.14881903]
[1763996605019,0.0001,86580.0,86499.0,3.14881903]
[1763996605020,0.58775664,86580.0,86555.0,0.09270902]
[1763996605229,0.58775664,86580.0,86555.0,0.10018902]
[1763996605431,0.00269949,86556.0,86555.0,1.78539802]
[1763996605564,0.00269949,86556.0,86555.0,2.17791802]
[1763996605925,0.00447798,86556.0,86555.0,2.18539802]
[1763996606140,0.00447798,86556.0,86555.0,2.085209]
[1763996606341,0.00447798,86556.0,86555.0,1.68532568]
[1763996607899,0.00447798,86556.0,86555.0,1.68632568]
[1763996608324,0.05787798,86556.0,86555.0,0.00111668]
[1763996608742,0.05787798,86556.0,86555.0,0.00011668]
[1763996609207,0.00447798,86556.0,86555.0,0.00011668]
[1763996609823,0.05787798,86556.0,86555.0,0.00011668]
[1763996610032,0.00547798,86556.0,86555.0,0.00011668]
[1763996610453,0.00447798,86556.0,86555.0,0.00011668]
[1763996610660,0.00447798,86556.0,86555.0,1.61752568]
[1763996612215,0.00447798,86556.0,86555.0,0.00011668]
[1763996612615,0.00447798,86556.0,86555.0,1.61752568]
[1763996614737,0.00447798,86556.0,86555.0,1.62500568]
[1763996615159,0.00447798,86556.0,86555.0,1.61752568]
[1763996615586,0.00447798,86556.0,86555.0,1.62500568]
[1763996616008,0.00447798,86556.0,86555.0,1.61752568]
[1763996616225,0.00447798,86556.0,86555.0,1.61952568]
[1763996616653,0.00447798,86556.0,86555.0,1.61752568]
[1763996617002,0.00447798,86556.0,86555.0,1.61852568]
[1763996618404,0.00447798,86556.0,86555.0,1.94152568]
[1763996618761,0.00447798,86556.0,86555.0,1.61852568]
[1763996619127,0.00447798,86556.0,86555.0,1.61752568]
[1763996619551,0.00447798,86556.0,86555.0,1.61852568]
[1763996619730,0.00447798,86556.0,86555.0,2.01852568]
[1763996620621,0.00447798,86556.0,86555.0,2.39362817]
[1763996620792,0.0002,86590.0,86555.0,2.39362817]
[1763996620793,0.0002,86590.0,86589.0,0.55397622]
[1763996621030,0.0002,86590.0,86589.0,1.92770136]
[1763996621230,0.0002,86590.0,86589.0,1.93518136]
[1763996621406,0.0002,86590.0,86589.0,2.33518136]
[1763996621619,0.0002,86590.0,86589.0,2.00470136]
[1763996621816,0.0002,86590.0,86589.0,2.00218136]
[1763996622022,0.00059071,86590.0,86589.0,2.01596376]
[1763996622224,0.00059071,86590.0,86589.0,2.02344376]
[1763996622432,0.00059071,86590.0,86589.0,2.08554625]
[1763996622582,0.00059071,86590.0,86589.0,2.01596376]
[1763996622788,0.00059071,86590.0,86589.0,2.02344376]
[1763996623000,0.00059071,86590.0,86589.0,2.00418136]
[1763996623387,0.00059071,86590.0,86589.0,2.29726007]
[1763996623598,0.00059071,86590.0,86589.0,2.05928385]
[1763996623811,0.00059071,86590.0,86589.0,2.06028385]
[1763996624084,0.00059071,86590.0,86589.0,1.98818136]
[1763996624270,0.00059071,86590.0,86589.0,1.58818136]
[1763996624484,0.00059071,86590.0,86589.0,0.00848]
[1763996624702,0.06780071,86590.0,86589.0,0.001]
[1763996624925,0.0966724,86590.0,86575.0,0.00748]
[1763996625127,0.58765664,86585.0,86566.0,0.00748]
[1763996625336,0.58765664,86580.0,86567.0,1.579703]
[1763996625556,0.58765664,86580.0,86569.0,1.579703]
[1763996625769,0.58765664,86580.0,86571.0,1.579703]
[1763996626014,0.58765664,86580.0,86573.0,1.579703]
[1763996626216,0.58824735,86590.0,86575.0,1.579703]
[1763996626389,0.58824735,86590.0,86566.0,0.00748]
[1763996626390,0.58765664,86585.0,86567.0,1.579703]
[1763996626616,0.58765664,86580.0,86569.0,1.579703]
[1763996626818,0.58765664,86580.0,86571.0,1.579703]
[1763996627026,0.58765664,86580.0,86573.0,1.579703]
[1763996627231,0.58765664,86583.0,86575.0,1.579703]
[1763996627425,0.58765664,86583.0,86567.0,1.579703]
[1763996627649,0.58765664,86580.0,86569.0,1.579703]
[1763996627963,0.58765664,86580.0,86571.0,1.579703]
[1763996628102,0.58765664,86580.0,86573.0,1.579703]
[1763996628311,0.58765664,86583.0,86575.0,1.579703]
[1763996628517,0.00059071,86590.0,86577.0,1.579703]
[1763996628729,0.58824735,86590.0,86578.0,0.00748]
[1763996628937,0.58824735,86590.0,86579.0,1.579703]
[1763996629795,0.02887202,86589.0,86579.0,1.579703]
[1763996630249,0.00059071,86590.0,86582.0,1.579703]
[1763996630468,0.00059071,86590.0,86584.0,1.579703]
[1763996630696,0.00059071,86590.0,86583.0,0.4]
[1763996630697,0.00059071,86590.0,86583.0,0.01154961]
[1763996630905,0.00059071,86590.0,86589.0,1.589703]
[1763996631113,0.00059071,86590.0,86589.0,1.989703]
[1763996631781,0.00661406,86601.0,86596.0,0.01]
[1763996632004,0.00661406,86601.0,86598.0,1.579703]
[1763996632430,0.00661406,86601.0,86600.0,1.579703]
[1763996632646,0.00661406,86601.0,86599.0,1.579703]
[1763996632873,0.00661406,86601.0,86597.0,1.579703]
[1763996633106,0.06981406,86601.0,86596.0,0.00111668]
[1763996633316,0.00133279,86598.0,86596.0,0.00111668]
[1763996633527,0.00661406,86601.0,86596.0,0.00111668]
[1763996633732,0.00661406,86601.0,86597.0,1.579703]
[1763996634154,0.00661406,86601.0,86598.0,0.00748]
[1763996634382,0.00661406,86601.0,86599.0,1.579703]
[1763996634603,0.00661406,86601.0,86598.0,0.00748]
[1763996634604,0.00661406,86601.0,86600.0,1.68241202]
[1763996636067,0.00661406,86601.0,86600.0,1.9153589]
[1763996636278,0.00661406,86601.0,86600.0,2.2383589]
[1763996637119,0.00661406,86601.0,86600.0,1.9153589]
[1763996637329,0.00661406,86601.0,86600.0,1.9133589]
[1763996637883,0.00661406,86601.0,86600.0,1.68241202]
[1763996638095,0.00661406,86601.0,86600.0,1.9153589]
[1763996638545,0.00661406,86601.0,86600.0,1.68441202]
[1763996638751,0.00661406,86601.0,86600.0,1.67989202]
[1763996638946,0.00661406,86601.0,86600.0,1.68189202]
[1763996639166,0.00804199,86601.0,86600.0,1.68189202]
[1763996639843,0.00404199,86601.0,86600.0,1.68189202]
[1763996640492,0.00404199,86601.0,86600.0,1.67989202]
[1763996640720,0.58765664,86650.0,86620.0,0.01]
[1763996640982,0.58765664,86630.0,86604.0,1.579703]
[1763996641193,0.05034341,86629.0,86601.0,1.579703]
[1763996641403,0.05034341,86629.0,86547.0,0.14246776]
[1763996641404,0.03277,86605.0,86550.0,0.58765664]
[1763996641615,0.02148472,86604.0,86600.0,0.002]
[1763996641822,0.02148472,86603.0,86600.0,0.002]
[1763996642042,0.02148472,86602.0,86578.0,0.00748]
[1763996642262,1.17531328,86610.0,86579.0,1.579703]
[1763996642263,0.02148472,86601.0,86579.0,1.579703]
[1763996642469,0.60914136,86600.0,86581.0,1.579703]
[1763996642694,0.58765664,86610.0,86578.0,0.00787071]
[1763996642695,0.58765664,86590.0,86579.0,1.579703]
[1763996642906,0.02148472,86589.0,86579.0,1.579703]
[1763996643136,0.02148472,86588.0,86579.0,1.56581148]
[1763996643359,0.02148472,86587.0,86579.0,1.56581148]
[1763996643563,0.58765664,86590.0,86579.0,1.56581148]
[1763996643564,0.02148472,86586.0,86579.0,1.56581148]
[1763996643792,0.02148472,86585.0,86578.0,0.00039071]
[1763996644019,0.02148472,86584.0,86578.0,0.00039071]
[1763996644231,0.02148472,86583.0,86578.0,0.00039071]
[1763996644471,0.02148472,86582.0,86579.0,1.565812]
[1763996644713,0.02148472,86581.0,86580.0,1.58891202]
[1763996644960,0.02148472,86581.0,86579.0,0.09270902]
[1763996644961,0.58765664,86590.0,86579.0,1.565812]
[1763996645200,0.97385664,86589.0,86578.0,0.00039071]
[1763996645644,0.09270902,86585.0,86578.0,0.00039071]
[1763996645875,0.3862,86588.0,86578.0,0.00039071]
[1763996646127,0.09270902,86584.0,86578.0,0.00039071]
[1763996646538,0.65085664,86600.0,86578.0,0.00039071]
[1763996646750,0.58765664,86590.0,86579.0,1.565812]
[1763996647168,0.0632,86589.0,86579.0,1.565812]
[1763996647380,0.09270902,86586.0,86578.0,0.00039071]
[1763996647799,0.0632,86585.0,86578.0,0.00039071]
[1763996648828,0.00748,86584.0,86578.0,0.00039071]
[1763996649247,0.0632,86583.0,86578.0,0.00039071]
[1763996649898,0.0077,86579.0,86578.0,0.00039071]
[1763996651450,0.0077,86579.0,86578.0,2.03349126]
[1763996651671,0.0077,86579.0,86578.0,2.24139627]
[1763996652351,0.0077,86579.0,86578.0,2.64139627]
[1763996652576,0.0077,86579.0,86578.0,0.40039071]
[1763996653204,0.00759291,86579.0,86578.0,0.40039071]
[1763996654088,0.00759291,86579.0,86578.0,0.40239071]
[1763996654522,0.00759291,86579.0,86578.0,0.40039071]
[1763996654963,0.00759291,86579.0,86578.0,0.40139071]
[1763996655181,0.00759291,86579.0,86578.0,0.00139071]
[1763996655382,0.00759291,86579.0,86578.0,0.00039071]
[1763996655598,0.00759291,86579.0,86578.0,0.02449126]
[1763996657553,0.00759291,86579.0,86578.0,2.26549682]
[1763996657775,0.00759291,86579.0,86578.0,2.24239627]
[1763996657985,0.00759291,86579.0,86578.0,2.64239627]
[1763996658194,0.00759291,86579.0,86578.0,2.40039071]
[1763996658624,0.00759291,86579.0,86578.0,2.40239071]
[1763996658850,0.00759291,86579.0,86578.0,0.40239071]
[1763996659260,0.00759291,86579.0,86578.0,2.41239071]
[1763996660172,0.00759291,86579.0,86578.0,2.73539071]
[1763996661191,0.00759291,86579.0,86578.0,2.41987071]
[1763996661411,0.00759291,86579.0,86578.0,0.40987071]
[1763996661600,0.00759291,86579.0,86578.0,0.40239071]
[1763996661762,0.00759291,86579.0,86578.0,0.00987071]
[1763996662789,0.00759291,86579.0,86578.0,0.00787071]
[1763996663286,0.00759291,86579.0,86578.0,0.00887071]
[1763996663702,0.00759291,86579.0,86578.0,0.00787071]
[1763996664083,0.00759291,86579.0,86578.0,0.00887071]
[1763996664512,0.00759291,86579.0,86578.0,2.03883374]
[1763996664720,0.00759291,86579.0,86578.0,2.01887071]
[1763996665605,0.00025377,86609.0,86596.0,0.24250338]
[1763996665817,0.00025377,86609.0,86606.0,0.09270902]
[1763996666031,0.00025377,86609.0,86607.0,0.00748]
[1763996666233,0.00025377,86609.0,86608.0,0.00748]
[1763996666869,0.02179524,86609.0,86608.0,0.00748]
[1763996667086,0.02179524,86609.0,86608.0,0.00759672]
[1763996667296,0.02179524,86609.0,86608.0,0.00011672]
[1763996667748,0.323,86607.0,86548.0,0.14246776]
[1763996667982,0.98297513,86580.0,86557.0,0.00039071]
[1763996668181,0.02154147,86579.0,86557.0,0.00039071]
[1763996668380,0.00685183,86578.0,86557.0,0.00039071]
[1763996668582,0.06523,86577.0,86557.0,0.00039071]
[1763996669416,0.98297513,86580.0,86557.0,0.00039071]
[1763996669543,0.06523,86576.0,86557.0,0.00039071]
[1763996669744,0.09270902,86573.0,86557.0,0.00039071]
[1763996669944,0.98297513,86570.0,86557.0,0.00039071]
[1763996670319,0.06523,86576.0,86557.0,0.00039071]
[1763996670677,0.41570902,86586.0,86557.0,0.00039071]
[1763996670876,0.98297513,86580.0,86557.0,0.00039071]
[1763996671265,0.06523,86579.0,86557.0,0.00039071]
[1763996671465,0.98297513,86580.0,86557.0,0.00039071]
[1763996671861,0.06523,86589.0,86557.0,0.00039071]
[1763996672070,0.09270902,86582.0,86557.0,0.00039071]
[1763996672240,0.98297513,86580.0,86557.0,0.00039071]
[1763996672701,0.06523,86579.0,86557.0,0.00039071]
[1763996672900,0.98297513,86570.0,86557.0,0.00039071]
[1763996673334,0.06523,86579.0,86557.0,0.00039071]
[1763996674728,0.06523,86579.0,86557.0,21.93816971]
[1763996675401,0.06523,86584.0,86558.0,0.02310589]
[1763996675654,0.11269051,86583.0,86557.0,21.93816971]
[1763996675864,0.98297513,86580.0,86557.0,21.93816971]
[1763996676067,0.98297513,86580.0,86558.0,0.02266274]
[1763996676464,0.06523,86582.0,86558.0,0.02266274]
[1763996676670,0.98297513,86580.0,86558.0,0.02266274]
[1763996676906,0.01868473,86579.0,86557.0,0.00039071]
[1763996677109,0.02385149,86588.0,86557.0,0.00039071]
[1763996677304,0.02887236,86588.0,86559.0,2.0]
[1763996677503,0.02887236,86588.0,86561.0,2.0]
[1763996677705,0.02887136,86591.0,86564.0,0.01]
[1763996677906,0.02886902,86598.0,86565.0,0.03058402]
[1763996679080,0.32325377,86609.0,86572.0,0.09270902]
[1763996679301,0.00025377,86609.0,86577.0,0.01155041]
[1763996679505,0.00025377,86609.0,86581.0,2.0]
[1763996679717,0.00025377,86609.0,86585.0,0.09270902]
[1763996679935,0.00025377,86609.0,86588.0,0.01]
[1763996680141,0.00025377,86609.0,86592.0,2.0]
[1763996680599,0.00025377,86609.0,86590.0,2.0]
[1763996680813,0.00025377,86609.0,86589.0,0.4]
[1763996680814,0.00025377,86609.0,86589.0,2.0]
[1763996681013,0.00025377,86609.0,86591.0,2.0]
[1763996681228,0.00025377,86609.0,86592.0,0.4]
[1763996681433,0.00025377,86609.0,86593.0,2.0]
[1763996681639,0.00025377,86609.0,86598.0,0.09270902]
[1763996681851,0.00025377,86609.0,86599.0,0.00748]
[1763996683121,0.00025377,86609.0,86599.0,0.99045513]
[1763996683326,0.00025377,86609.0,86599.0,0.00748]
[1763996683767,0.00025377,86609.0,86600.0,2.0]
[1763996684875,0.00025377,86609.0,86605.0,0.09270902]
[1763996685776,0.00025377,86609.0,86606.0,0.4]
[1763996686200,0.00025377,86609.0,86607.0,0.00748]
[1763996686378,0.00025377,86609.0,86605.0,0.001]
[1763996686633,0.00025377,86609.0,86608.0,0.00748]
[1763996688755,0.00025377,86609.0,86608.0,2.01748]
[1763996688978,0.00025377,86609.0,86608.0,2.00848]
[1763996689187,0.00025377,86609.0,86608.0,0.001]
[1763996689395,0.00025377,86609.0,86608.0,0.40848]
[1763996689610,0.00025377,86609.0,86608.0,0.40748]
[1763996689827,0.00025377,86609.0,86608.0,0.40848]
[1763996690262,0.00025377,86609.0,86608.0,0.00848]
[1763996690969,0.00025377,86609.0,86608.0,2.23940554]
[1763996691214,0.00025377,86609.0,86608.0,2.24940554]
[1763996691881,0.00025377,86609.0,86608.0,2.24840554]
[1763996692112,0.00025377,86609.0,86608.0,2.65040554]
[1763996692354,0.00025377,86609.0,86608.0,2.70250803]
[1763996692571,0.00025377,86609.0,86608.0,2.70050803]
[1763996692990,0.00025377,86609.0,86608.0,2.70250803]
[1763996694129,0.00025377,86609.0,86608.0,2.70050803]
[1763996694367,0.00025377,86609.0,86608.0,2.70250803]
[1763996694590,0.00025377,86609.0,86608.0,2.47158249]
[1763996694794,0.00025377,86609.0,86608.0,2.70250803]
[1763996694997,0.00025377,86609.0,86608.0,2.70050803]
[1763996695117,0.00025377,86609.0,86608.0,2.70250803]
[1763996695535,0.04696342,86656.0,86608.0,2.70250803]
[1763996695536,0.01811372,86656.0,86625.0,0.01154401]
[1763996695747,0.01811372,86656.0,86637.0,0.0925091]
[1763996695942,0.01811372,86656.0,86638.0,0.01748]
[1763996696099,0.01811372,86656.0,86638.0,0.41748]
[1763996696300,0.01811372,86656.0,86642.0,0.01]
[1763996696663,0.01811372,86656.0,86643.0,2.03505291]
[1763996696867,0.0002,86680.0,86651.0,0.01]
[1763996696868,0.02884204,86679.0,86651.0,0.01]
[1763996697073,0.01543999,86680.0,86652.0,0.00748]
[1763996697274,0.0002,86680.0,86652.0,0.01748]
[1763996697494,0.0002,86680.0,86653.0,0.02120718]
[1763996697793,0.0002,86680.0,86654.0,0.02120718]
[1763996697915,0.0002,86680.0,86655.0,2.02120718]
[1763996698134,0.0002,86680.0,86656.0,0.02120718]
[1763996698350,0.0002,86680.0,86658.0,2.0]
[1763996698556,0.0002,86680.0,86659.0,0.02120718]
[1763996698912,0.0002,86680.0,86660.0,0.02120718]
[1763996699116,0.0002,86680.0,86661.0,0.02120718]
[1763996699253,0.0002,86680.0,86662.0,0.02120718]
[1763996699463,0.0002,86680.0,86663.0,0.02868718]
[1763996699670,0.0002,86680.0,86664.0,0.02868718]
[1763996699873,0.0002,86680.0,86665.0,0.1213962]
[1763996700088,0.0002,86680.0,86666.0,0.02120718]
[1763996700287,0.0002,86680.0,86679.0,0.09270902]
[1763996700516,0.0002,86680.0,86679.0,2.1313962]
[1763996700714,0.0002,86680.0,86679.0,0.1313962]
[1763996700919,0.0002,86680.0,86679.0,0.1139162]
[1763996700920,0.00245023,86680.0,86679.0,0.1139162]
[1763996701224,0.10421023,86680.0,86679.0,0.02120718]
[1763996701441,0.0907272,86680.0,86679.0,0.02120718]
[1763996701852,0.0907272,86680.0,86679.0,0.02320718]
[1763996702498,0.0303472,86680.0,86679.0,0.02120718]
[1763996702709,0.0907272,86680.0,86679.0,0.02120718]
[1763996703118,0.00039134,86680.0,86679.0,0.02120718]
[1763996703362,0.00039134,86680.0,86679.0,0.02115902]
[1763996703768,0.10215134,86680.0,86679.0,0.02115902]
[1763996703937,0.04177134,86680.0,86679.0,0.02115902]
[1763996704163,0.00039134,86680.0,86679.0,0.02115902]
[1763996704370,0.10215134,86680.0,86679.0,0.02115902]
[1763996705655,0.00039134,86680.0,86679.0,0.02115902]
[1763996706976,0.10215134,86680.0,86679.0,0.02115902]
[1763996707390,0.10215134,86680.0,86679.0,0.02215902]
[1763996707749,0.11236647,86680.0,86679.0,0.02115902]
[1763996707950,0.323,86679.0,86610.0,0.14246776]
[1763996708178,0.98297513,86650.0,86622.0,0.00748]
[1763996708347,0.98297513,86650.0,86623.0,0.4]
[1763996708546,0.03005,86649.0,86623.0,0.4]
[1763996708775,0.98297513,86640.0,86623.0,0.4]
[1763996708979,0.06038,86648.0,86592.0,0.09270902]
[1763996708980,0.07143,86624.0,86592.0,0.09270902]
[1763996709151,0.98297513,86620.0,86592.0,0.09270902]
[1763996709366,0.03005,86593.0,86592.0,0.00011684]
[1763996709776,0.09043,86593.0,86562.0,0.00748]
[1763996710004,0.98297513,86580.0,86562.0,0.00787071]
[1763996710369,0.06038,86589.0,86562.0,0.00039071]
[1763996710807,0.98297513,86580.0,86562.0,0.00039071]
[1763996710921,0.06038,86589.0,86562.0,0.00039071]
[1763996711122,0.03005,86593.0,86563.0,0.00748]
[1763996711321,0.03005,86593.0,86564.0,0.02310429]
[1763996711732,0.323,86609.0,86570.0,0.98297513]
[1763996711961,0.06038,86618.0,86580.0,0.98297513]
[1763996712183,0.001,86589.0,86582.0,0.01]
[1763996712404,0.001,86589.0,86581.0,0.00748]
[1763996712614,0.001,86589.0,86575.0,0.09270902]
[1763996712869,0.001,86589.0,86557.0,7.49087873]
[1763996712870,0.98297513,86585.0,86557.0,7.49087873]
[1763996713147,0.00999999,86580.0,86557.0,7.43070873]
[1763996713308,0.00039093,86585.0,86558.0,0.02310589]
[1763996713509,0.00039093,86585.0,86559.0,2.0]
[1763996713710,0.00039093,86585.0,86584.0,0.02006]
[1763996714040,0.00039093,86585.0,86557.0,7.43070873]
[1763996714041,0.00039093,86585.0,86579.0,0.00748]
[1763996714458,0.00039093,86585.0,86580.0,0.02006]
[1763996715001,0.00039093,86585.0,86581.0,0.02309975]
[1763996715201,0.00039093,86585.0,86581.0,0.08120975]
[1763996715544,0.00039093,86585.0,86581.0,0.02309975]
[1763996716187,0.00039093,86585.0,86581.0,0.01249499]
[1763996716390,0.00039093,86585.0,86582.0,0.05811]
[1763996716602,0.00039093,86585.0,86583.0,0.11580824]
[1763996716811,0.00039093,86585.0,86584.0,2.01]
[1763996717014,0.02885536,86639.0,86586.0,2.0]
[1763996717224,0.02885536,86639.0,86602.0,0.09270902]
[1763996717449,0.02885536,86639.0,86587.0,0.08120815]
[1763996717450,0.98297513,86620.0,86603.0,0.00748]
[1763996717650,0.98297513,86620.0,86604.0,0.00748]
[1763996717870,0.09270902,86616.0,86586.0,0.00011684]
[1763996718083,0.98297513,86610.0,86587.0,0.00748]
[1763996718525,0.98297513,86610.0,86582.0,0.02409948]
[1763996718526,0.02999,86588.0,86582.0,0.02409948]
[1763996718728,2.0,86584.0,86582.0,0.00011698]
[1763996718935,0.02999,86588.0,86582.0,0.00011698]
[1763996719152,0.0308416,86653.0,86582.0,0.00011698]
[1763996719153,0.02999,86598.0,86582.0,0.00011698]
[1763996719392,0.02999,86610.0,86582.0,0.00011698]
[1763996719617,0.09270902,86603.0,86582.0,0.00011698]
[1763996719822,0.58736419,86592.0,86582.0,0.00011698]
[1763996720662,0.05492,86602.0,86582.0,0.00011698]
[1763996720922,0.37792,86602.0,86582.0,0.00011698]
[1763996721169,0.02999,86610.0,86582.0,0.00011698]
[1763996721394,0.80248415,86620.0,86582.0,0.00011698]
[1763996721395,0.001,86603.0,86598.0,2.0]
[1763996721614,0.001,86603.0,86600.0,0.80248415]
[1763996721834,0.02999,86660.0,86612.0,0.01]
[1763996722059,0.02999,86660.0,86623.0,0.01]
[1763996722060,0.02137789,86659.0,86623.0,0.01]
[1763996722278,0.02137789,86658.0,86613.0,0.06563]
[1763996722488,0.09270902,86633.0,86587.0,0.06811]
[1763996722710,0.02137789,86632.0,86596.0,0.09270902]
[1763996722927,0.02137789,86631.0,86597.0,0.00443647]
[1763996723136,0.04797888,86630.0,86597.0,0.00443647]
[1763996723342,0.02137789,86629.0,86597.0,0.00443647]
[1763996723528,0.05023691,86628.0,86598.0,0.05811]
[1763996723728,0.001,86602.0,86599.0,0.00443709]
[1763996723942,0.001,86602.0,86600.0,0.05811]
[1763996724078,0.02885736,86633.0,86601.0,2.0]
[1763996724278,0.02138417,86632.0,86600.0,0.45811]
[1763996724476,0.323,86641.0,86600.0,0.45811]
[1763996724477,0.001,86629.0,86600.0,0.45811]
[1763996724678,0.11409319,86628.0,86596.0,0.092826]
[1763996724924,0.46500126,86627.0,86596.0,0.00763698]
[1763996725271,0.02138417,86626.0,86596.0,0.00763698]
[1763996725481,0.04632917,86625.0,86596.0,0.00763698]
[1763996725718,0.02138417,86624.0,86596.0,0.00763698]
[1763996725923,0.04968467,86623.0,86597.0,0.00752]
[1763996726143,0.04968467,86623.0,86596.0,0.00011698]
[1763996726144,0.02999,86597.0,86596.0,0.00011698]
[1763996726364,0.05137756,86597.0,86596.0,0.00011698]
[1763996726577,0.13516692,86597.0,86596.0,0.00011698]
[1763996727001,0.37437756,86597.0,86596.0,0.00011698]
[1763996727214,0.02138756,86597.0,86596.0,0.00011698]
[1763996730437,0.02999,86616.0,86596.0,0.00011698]
[1763996730638,0.02822637,86616.0,86596.0,0.08132273]
[1763996730871,0.02822637,86632.0,86596.0,0.08132273]
[1763996731089,0.02822637,86632.0,86597.0,0.05811]
[1763996731721,0.02822637,86632.0,86601.0,0.09270902]
[1763996731941,0.02822637,86643.0,86631.0,0.01322]
[1763996732153,0.09270902,86673.0,86632.0,0.00752]
[1763996732363,0.02822637,86662.0,86635.0,0.01]
[1763996732592,0.02822637,86662.0,86638.0,0.01]
[1763996732816,0.02822637,86677.0,86638.0,0.01]
[1763996733025,0.02822637,86677.0,86639.0,0.05811]
[1763996733452,0.02999,86681.0,86644.0,0.09270902]
[1763996733661,0.02822637,86677.0,86644.0,0.09270902]
[1763996733889,0.02822637,86677.0,86645.0,0.05811]
[1763996734307,0.05492,86671.0,86646.0,0.00752]
[1763996734517,0.00989848,86662.0,86640.0,0.4]
[1763996734762,0.17585539,86662.0,86646.0,0.00752]
[1763996734972,0.02822637,86662.0,86646.0,0.00752]
[1763996735178,0.05492,86665.0,86646.0,0.00752]
[1763996735404,0.09270902,86661.0,86638.0,0.00011698]
[1763996735617,0.02822637,86660.0,86638.0,0.00011698]
[1763996735821,0.40614637,86660.0,86638.0,0.00011698]
[1763996736073,0.37792,86660.0,86638.0,0.00011698]
[1763996736277,0.35122637,86659.0,86638.0,0.00011698]
[1763996736521,0.02463,86639.0,86638.0,0.00011698]
[1763996736733,0.02999,86639.0,86638.0,0.00011698]
[1763996736940,0.06244,86658.0,86638.0,0.00011698]
[1763996736941,0.02067099,86644.0,86638.0,0.00011698]
[1763996737153,0.001,86660.0,86638.0,0.00011698]
[1763996737380,0.02922637,86660.0,86639.0,0.05811]
[1763996737596,0.33729545,86675.0,86639.0,0.05811]
[1763996737813,0.01846648,86662.0,86639.0,0.05811]
[1763996738017,0.02822637,86662.0,86639.0,0.05811]
[1763996738230,0.05492,86676.0,86639.0,0.05811]
[1763996738231,0.02822637,86672.0,86640.0,0.09270902]
[1763996738441,0.02822637,86687.0,86661.0,0.02798]
[1763996738653,0.02822637,86687.0,86662.0,0.00752]
[1763996738861,0.02822637,86687.0,86662.0,0.06563]
[1763996739068,0.00025342,86688.0,86662.0,0.06563]
[1763996739960,0.00025342,86688.0,86662.0,0.00752]
[1763996740171,0.02847979,86688.0,86662.0,0.06563]
[1763996740395,0.08339979,86688.0,86662.0,0.00852]
[1763996740822,0.58548119,86680.0,86663.0,0.00752]
[1763996741030,0.02822637,86679.0,86663.0,0.00752]
[1763996741281,0.02822637,86679.0,86662.0,0.001]
[1763996741490,0.35122637,86679.0,86662.0,0.00852]
[1763996741723,0.32,86679.0,86662.0,0.00852]
[1763996741936,0.00025342,86688.0,86662.0,0.06663]
[1763996742361,0.02146229,86687.0,86662.0,0.06663]
[1763996742567,0.04968866,86686.0,86662.0,0.00752]
[1763996742783,0.04968866,86686.0,86634.0,0.01154281]
[1763996742784,0.02622,86663.0,86634.0,0.05811]
[1763996742999,0.02146229,86662.0,86639.0,0.00752]
[1763996743197,0.04968866,86661.0,86639.0,0.00752]
[1763996743405,0.02146229,86660.0,86639.0,0.00752]
[1763996743645,0.02146229,86660.0,86627.0,0.01322]
[1763996743646,0.04968866,86659.0,86627.0,0.01322]
[1763996743846,0.02146229,86658.0,86632.0,0.00752]
[1763996744058,0.58548119,86650.0,86612.0,0.4]
[1763996744293,0.09270902,86647.0,86619.0,0.01494]
[1763996744502,0.1380577,86646.0,86629.0,0.00752]
[1763996744718,0.35122637,86645.0,86593.0,0.05921]
[1763996744939,0.58548119,86630.0,86595.0,0.02798]
[1763996745151,0.58548119,86620.0,86604.0,0.00752]
[1763996745372,0.08816,86619.0,86604.0,0.00752]
[1763996745590,0.08816,86619.0,86595.0,0.000117]
[1763996745591,0.09270902,86608.0,86595.0,0.000117]
[1763996745799,0.09270902,86607.0,86595.0,0.000117]
[1763996746003,0.58548119,86605.0,86595.0,0.000117]
[1763996746653,0.323,86606.0,86595.0,0.000117]
[1763996747520,0.001,86605.0,86595.0,0.000117]
[1763996747941,0.05594,86604.0,86595.0,0.000117]
[1763996748577,0.09270902,86603.0,86595.0,0.000117]
[1763996749013,0.001,86606.0,86595.0,0.000117]
[1763996749224,0.09270902,86604.0,86595.0,0.000117]
[1763996749852,2.38646,86603.0,86595.0,0.000117]
[1763996750070,0.323,86600.0,86595.0,0.000117]
[1763996750283,0.323,86596.0,86595.0,0.000117]
[1763996750738,0.37894,86596.0,86595.0,0.000117]
[1763996750940,0.38646,86596.0,86595.0,0.000117]
[1763996751403,0.05594,86596.0,86595.0,0.000117]
[1763996752257,0.323,86589.0,86525.0,0.4]
[1763996752474,0.0147,86563.0,86557.0,7.43109966]